bitfinex-derivatives/quotes_BTCF0:USTF0_20251118
["timestamp","ask_amount","ask_price","bid_price","bid_amount"]
[1763482508639,0.00073267,93250.0,93226.0,0.01377369]
[1763482508938,0.3608,93237.0,93234.0,0.1073453]
[1763482509142,0.3608,93237.0,93230.0,0.00219803]
[1763482509333,0.0604,93231.0,93230.0,0.00219803]
[1763482509528,0.11326,93217.0,93216.0,9.199e-05]
[1763482509841,0.2206362,93208.0,93207.0,0.00016084]
[1763482510032,0.5814362,93208.0,93207.0,0.00016084]
[1763482510339,0.3608,93208.0,93191.0,0.1073947]
[1763482510535,0.11326,93201.0,93200.0,0.00219803]
[1763482510736,0.1073798,93205.0,93200.0,0.16531343]
[1763482510931,9.199e-05,93204.0,93200.0,0.16531343]
[1763482511132,0.1073819,93203.0,93200.0,0.05792803]
[1763482511336,0.0604,93201.0,93200.0,0.00219803]
[1763482511734,9.199e-05,93204.0,93201.0,0.1073842]
[1763482512041,9.199e-05,93204.0,93203.0,0.05573]
[1763482512343,0.2206534,93193.0,93177.0,0.3608]
[1763482512533,0.4827334,93193.0,93180.0,0.1074076]
[1763482512832,0.4827334,93193.0,93177.0,0.3608]
[1763482513236,0.11326,93178.0,93168.0,0.05733239]
[1763482513431,0.2206834,93167.0,93166.0,0.00026834]
[1763482513637,0.2206834,93167.0,93158.0,0.00012291]
[1763482513638,0.2206927,93159.0,93158.0,0.00012291]
[1763482513936,0.1074473,93147.0,93135.0,0.10746]
[1763482514135,0.1074473,93147.0,93140.0,0.00219803]
[1763482514441,0.3608,93148.0,93140.0,0.00219803]
[1763482514643,0.0604,93141.0,93140.0,0.00219803]
[1763482514846,0.1133771,93141.0,93140.0,0.00219803]
[1763482515336,0.1074604,93135.0,93132.0,0.00016103]
[1763482515538,0.3608,93138.0,93132.0,0.00016103]
[1763482515836,0.1678626,93133.0,93132.0,0.00016103]
[1763482516037,0.2207226,93133.0,93132.0,0.00016103]
[1763482516242,0.3608,93138.0,93132.0,0.00016103]
[1763482516444,0.3608,93138.0,93137.0,0.163188]
[1763482516642,0.3608,93138.0,93137.0,0.10836]
[1763482517242,0.3608,93138.0,93135.0,0.001]
[1763482517545,0.00073267,93140.0,93139.0,0.05573]
[1763482517732,0.00073267,93140.0,93139.0,0.10836]
[1763482517935,0.0001171,93141.0,93140.0,0.21801253]
[1763482518247,0.00016103,93150.0,93149.0,0.2158042]
[1763482518440,0.1141537,93150.0,93149.0,0.3608]
[1763482518834,0.1141537,93150.0,93147.0,0.1074463]
[1763482519034,0.0008937,93150.0,93149.0,0.10836]
[1763482519232,0.0008937,93150.0,93147.0,0.1074463]
[1763482519233,0.3608,93170.0,93169.0,0.2157811]
[1763482519440,0.3608,93170.0,93150.0,0.03279803]
[1763482519441,0.47479267,93170.0,93163.0,0.1074272]
[1763482519744,0.47479267,93170.0,93164.0,0.1074259]
[1763482519944,0.0604,93168.0,93167.0,0.1074223]
[1763482520340,0.36153267,93170.0,93160.0,0.1074312]
[1763482520341,0.1074234,93167.0,93160.0,0.1074312]
[1763482520549,0.05161,93165.0,93160.0,0.00219803]
[1763482520850,0.1018,93161.0,93160.0,0.00219803]
[1763482521234,0.26228,93166.0,93161.0,0.1074303]
[1763482521649,0.1074257,93165.0,93160.0,0.00219803]
[1763482521841,0.1018,93161.0,93160.0,0.00219803]
[1763482522454,0.1018,93159.0,93158.0,0.00016103]
[1763482522750,0.00073267,93160.0,93159.0,0.1074326]
[1763482523137,0.00073267,93160.0,93159.0,0.2069626]
[1763482523540,0.00073267,93160.0,93159.0,0.09953]
[1763482524039,0.05161,93159.0,93158.0,0.00016103]
[1763482524448,0.00073267,93160.0,93159.0,0.1564926]
[1763482524942,0.00073267,93160.0,93159.0,0.1074326]
[1763482525145,0.1018,93159.0,93158.0,0.00016103]
[1763482525940,0.1018,93159.0,93130.0,0.24144249]
[1763482525941,0.1074822,93116.0,93109.0,0.03019]
[1763482526148,0.3608,93110.0,93096.0,0.03019]
[1763482526354,0.1074992,93102.0,93100.0,0.00219803]
[1763482526643,0.3608,93101.0,93100.0,0.00219803]
[1763482527039,0.3608,93101.0,93100.0,0.10172803]
[1763482527543,0.3608,93101.0,93100.0,0.00219803]
[1763482527744,0.10823337,93100.0,93096.0,0.03019]
[1763482528247,0.00073267,93100.0,93099.0,0.1061]
[1763482528448,0.36096112,93110.0,93109.0,0.2135903]
[1763482528845,0.3608,93126.0,93125.0,0.1074718]
[1763482529046,0.36153267,93130.0,93129.0,0.1061]
[1763482529251,0.3608,93142.0,93140.0,0.1074534]
[1763482529546,0.3608,93142.0,93141.0,0.1061]
[1763482530144,0.3608,93142.0,93141.0,0.04901]
[1763482530343,0.00073267,93140.0,93139.0,0.2135557]
[1763482530644,0.00073267,93140.0,93139.0,0.1061]
[1763482531743,0.1074557,93139.0,93138.0,0.03349]
[1763482532854,0.1074626,93133.0,93132.0,0.03365112]
[1763482533044,0.3608,93133.0,93132.0,0.03365112]
[1763482534541,0.3608,93133.0,93132.0,0.13975112]
[1763482535451,0.3608,93133.0,93132.0,0.00016112]
[1763482535952,0.1075025,93099.0,93098.0,0.04901]
[1763482536254,0.1075025,93099.0,93098.0,0.1061]
[1763482536255,0.3608,93099.0,93098.0,0.1061]
[1763482537339,0.00073267,93100.0,93099.0,0.2136018]
[1763482537648,0.00016112,93108.0,93107.0,0.2135926]
[1763482537957,0.3608,93119.0,93118.0,0.2135799]
[1763482539042,0.27465,93119.0,93118.0,0.2135799]
[1763482539749,0.00016112,93128.0,93127.0,0.1564795]
[1763482540055,0.00016112,93128.0,93127.0,0.04901]
[1763482540255,0.00016112,93128.0,93127.0,0.1564795]
[1763482540449,0.00016112,93128.0,93114.0,0.03349]
[1763482540759,0.3608,93121.0,93120.0,0.00219803]
[1763482541954,0.40494,93121.0,93120.0,0.00219803]
[1763482542255,0.08828,93110.0,93109.0,0.00016112]
[1763482542450,0.5565691,93110.0,93109.0,0.00016112]
[1763482543249,0.40494,93110.0,93109.0,0.00016112]
[1763482543453,0.3608,93110.0,93109.0,0.00016112]
[1763482543855,0.3608,93110.0,93109.0,0.13975112]
[1763482545756,0.44908,93110.0,93109.0,0.00016112]
[1763482547357,0.107503,93098.0,93097.0,0.0001329]
[1763482547561,0.556583,93098.0,93097.0,0.0001329]
[1763482548453,0.3608,93098.0,93097.0,0.0001329]
[1763482548653,0.3608,93098.0,93097.0,0.0491429]
[1763482549059,0.44908,93098.0,93097.0,0.0001329]
[1763482549466,0.44908,93098.0,93097.0,0.0011329]
[1763482549659,0.40494,93098.0,93097.0,0.108637]
[1763482550255,0.44908,93098.0,93097.0,0.0011329]
[1763482550653,0.44908,93098.0,93097.0,0.0501429]
[1763482550654,0.3608,93098.0,93097.0,0.0501429]
[1763482551162,0.40494,93098.0,93097.0,0.0011329]
[1763482551564,0.40494,93098.0,93097.0,0.0501429]
[1763482552463,0.6671,93098.0,93097.0,0.0501429]
[1763482552858,0.71124,93098.0,93097.0,0.0011329]
[1763482553059,0.62292,93098.0,93097.0,0.0501429]
[1763482553253,0.3608,93098.0,93097.0,0.0501429]
[1763482553456,0.00016112,93107.0,93098.0,0.215006]
[1763482553657,0.00016112,93107.0,93106.0,0.2135937]
[1763482554256,2e-08,93107.0,93106.0,0.2135937]
[1763482554451,0.40494,93133.0,93132.0,0.1074637]
[1763482554663,0.40494,93133.0,93130.0,0.00219803]
[1763482554664,0.08828,93131.0,93130.0,0.00219803]
[1763482554866,0.62292,93133.0,93122.0,0.1074748]
[1763482554867,0.08828,93123.0,93122.0,0.1074748]
[1763482555060,0.44908,93123.0,93122.0,0.1074748]
[1763482555365,0.3608,93123.0,93122.0,0.2135748]
[1763482555965,0.04414,93121.0,93120.0,0.03568803]
[1763482556160,0.08828,93121.0,93120.0,0.10967563]
[1763482557566,0.08928,93121.0,93120.0,0.10967563]
[1763482559758,0.001,93121.0,93120.0,0.21434563]
[1763482560567,0.06228,93121.0,93120.0,0.00219803]
[1763482560756,0.06128,93114.0,93113.0,0.10764682]
[1763482560960,0.42208,93114.0,93113.0,0.16231682]
[1763482561168,0.42208,93114.0,93113.0,0.21231682]
[1763482561368,0.3608,93114.0,93113.0,0.21231682]
[1763482561568,0.001,93121.0,93120.0,0.2121476]
[1763482561769,0.001,93121.0,93120.0,0.21434563]
[1763482562071,0.26196,93128.0,93127.0,0.2121395]
[1763482562768,0.26196,93128.0,93127.0,0.26969081]
[1763482562969,0.3608,93131.0,93130.0,0.21433403]
[1763482563270,0.42408,93131.0,93130.0,0.10966403]
[1763482563571,0.06328,93122.0,93121.0,0.16502721]
[1763482563873,0.42408,93122.0,93121.0,0.1621459]
[1763482564067,0.62276,93122.0,93121.0,0.2121459]
[1763482564759,0.3608,93122.0,93121.0,0.2121459]
[1763482565165,0.3608,93122.0,93121.0,0.26969721]
[1763482565469,0.00016112,93132.0,93131.0,0.2121349]
[1763482565670,0.3608,93166.0,93165.0,0.1074257]
[1763482565874,0.02345047,93166.0,93165.0,0.2421257]
[1763482566070,0.06328,93177.0,93176.0,0.107413]
[1763482566474,0.06328,93163.0,93157.0,0.1074341]
[1763482566676,0.26192,93164.0,93159.0,0.1074315]
[1763482566969,0.06328,93160.0,93155.0,0.37391701]
[1763482567176,0.06328,93152.0,93151.0,0.000161]
[1763482567360,0.06328,93152.0,93127.0,0.09569935]
[1763482567361,0.06328,93141.0,93140.0,0.05735627]
[1763482567564,0.3252,93141.0,93140.0,0.10965253]
[1763482568274,0.3608,93165.0,93152.0,0.03003]
[1763482568477,0.06328,93161.0,93160.0,0.10962943]
[1763482568866,0.3252,93161.0,93160.0,0.10962943]
[1763482569066,0.3608,93165.0,93160.0,0.10962943]
[1763482569067,0.03164,93165.0,93164.0,0.1074268]
[1763482569274,0.3252,93165.0,93164.0,0.1074268]
[1763482569476,0.000161,93168.0,93167.0,0.10467]
[1763482569676,0.000161,93168.0,93167.0,0.46547]
[1763482570569,0.3608,93189.0,93188.0,0.2120692]
[1763482570764,0.3252,93196.0,93195.0,0.1073911]
[1763482571072,0.26192,93196.0,93195.0,0.2120611]
[1763482571375,0.424241,93205.0,93204.0,0.1073807]
[1763482571570,0.686201,93205.0,93200.0,0.00219803]
[1763482571870,0.06328,93201.0,93200.0,0.00219803]
[1763482572680,0.26192,93202.0,93201.0,0.2120542]
[1763482572877,0.000161,93205.0,93204.0,0.10467]
[1763482573170,0.000161,93205.0,93201.0,0.1073842]
[1763482573475,0.3608,93202.0,93186.0,0.000161]
[1763482573681,0.06328,93191.0,93190.0,0.10959483]
[1763482573868,0.06328,93191.0,93190.0,0.00219803]
[1763482574070,0.1706756,93191.0,93186.0,0.000161]
[1763482574277,0.06328,93187.0,93186.0,0.000161]
[1763482574577,0.42408,93194.0,93193.0,0.1073933]
[1763482574776,0.68596,93194.0,93193.0,0.1073933]
[1763482574978,0.68592,93194.0,93193.0,0.1073933]
[1763482575163,0.32512,93194.0,93193.0,0.1073933]
[1763482575972,0.06328,93194.0,93193.0,0.1073933]
[1763482576173,0.32512,93194.0,93193.0,0.1073933]
[1763482576572,0.32712,93194.0,93193.0,0.1073933]
[1763482576774,0.32712,93194.0,93190.0,0.00219803]
[1763482576775,0.06328,93191.0,93190.0,0.00219803]
[1763482577975,0.06328,93191.0,93190.0,0.36299803]
[1763482578178,0.004,93194.0,93193.0,0.10467]
[1763482578375,0.002,93194.0,93193.0,0.10467]
[1763482578582,0.0017316,93194.0,93193.0,0.10467]
[1763482579885,0.0037316,93194.0,93193.0,0.10467]
[1763482580588,0.002,93194.0,93193.0,0.10467]
[1763482581687,0.004,93194.0,93193.0,0.10467]
[1763482582387,0.0641,93191.0,93190.0,0.36299803]
[1763482582783,0.004,93194.0,93193.0,0.10423]
[1763482583181,0.004,93194.0,93193.0,0.2116233]
[1763482584187,0.002,93194.0,93193.0,0.2116233]
[1763482584392,0.002,93194.0,93193.0,0.1073933]
[1763482584393,0.0661,93194.0,93193.0,0.1073933]
[1763482584694,0.002,93194.0,93193.0,0.2116233]
[1763482585192,0.3608,93231.0,93204.0,0.2116107]
[1763482585390,0.3608,93231.0,93225.0,0.03114]
[1763482585592,0.3608,93231.0,93229.0,0.1073518]
[1763482585785,0.4249,93241.0,93240.0,0.1073392]
[1763482586095,0.4249,93241.0,93240.0,0.10953723]
[1763482586985,0.5322381,93241.0,93240.0,0.00219803]
[1763482587486,0.06051,93232.0,93231.0,0.1075105]
[1763482587991,0.06051,93232.0,93231.0,0.0001609]
[1763482588389,0.42131,93232.0,93231.0,0.0001609]
[1763482589289,0.5286584,93232.0,93231.0,0.0001609]
[1763482589799,0.42131,93232.0,93231.0,0.1073496]
[1763482590189,0.1073502,93231.0,93225.0,0.1073556]
[1763482590487,0.05352,93226.0,93225.0,0.1073565]
[1763482590686,0.05352,93226.0,93216.0,0.0001609]
[1763482590687,0.26172,93226.0,93216.0,0.0001609]
[1763482590895,0.3608,93218.0,93217.0,0.1073657]
[1763482591089,0.3608,93218.0,93216.0,0.0001609]
[1763482591287,0.3608,93218.0,93217.0,0.1073657]
[1763482591688,0.1073657,93217.0,93216.0,0.0001609]
[1763482592083,0.3608,93218.0,93216.0,0.0001609]
[1763482592283,0.3608,93218.0,93217.0,0.2049957]
[1763482592591,0.3608,93218.0,93216.0,0.0001609]
[1763482592592,0.10736,93222.0,93220.0,0.00219803]
[1763482592894,0.001,93226.0,93216.0,0.0001609]
[1763482592895,0.1073657,93217.0,93216.0,0.0001609]
[1763482593192,0.1083657,93217.0,93216.0,0.0001609]
[1763482593496,0.001,93217.0,93216.0,0.0001609]
[1763482594696,0.1073749,93210.0,93207.0,0.1073761]
[1763482594896,0.3608,93208.0,93207.0,0.1073772]
[1763482595806,0.3608,93208.0,93207.0,0.1583272]
[1763482596201,0.3608,93208.0,93207.0,0.2050072]
[1763482596501,0.001,93210.0,93209.0,0.2050049]
[1763482596895,0.3608,93218.0,93217.0,0.1073657]
[1763482597093,0.26168,93221.0,93220.0,0.20719023]
[1763482598208,0.2359047,93221.0,93220.0,0.20719023]
[1763482598413,0.3608,93238.0,93229.0,0.2049819]
[1763482598702,0.26168,93236.0,93229.0,0.2049819]
[1763482599006,0.3608,93246.0,93245.0,0.05095]
[1763482599307,0.26168,93249.0,93248.0,0.20496]
[1763482601601,0.26168,93249.0,93243.0,0.1073358]
[1763482601903,0.26168,93249.0,93248.0,0.20496]
[1763482602106,0.26268,93249.0,93248.0,0.20496]
[1763482602498,0.3608,93275.0,93257.0,0.2049496]
[1763482602693,0.3608,93275.0,93255.0,0.02826]
[1763482602694,0.1073012,93273.0,93270.0,0.03045803]
[1763482603511,0.1073012,93273.0,93272.0,0.09763]
[1763482603700,0.26168,93274.0,93273.0,0.09763]
[1763482603906,0.1073012,93273.0,93270.0,0.03045803]
[1763482604103,0.1073012,93273.0,93270.0,0.02826]
[1763482604303,0.26168,93274.0,93273.0,0.09763]
[1763482604512,0.26168,93274.0,93273.0,0.2049312]
[1763482604712,0.26168,93274.0,93273.0,0.09763]
[1763482606303,0.002,93274.0,93273.0,0.09763]
[1763482606502,0.0001609,93281.0,93280.0,0.2049232]
[1763482606809,0.6224,93307.0,93296.0,0.02826]
[1763482607006,1.6072643,93306.0,93300.0,0.00219803]
[1763482607306,0.6224,93307.0,93306.0,0.09763]
[1763482607501,0.6224,93307.0,93296.0,0.02826]
[1763482607710,0.6224,93307.0,93306.0,0.09763]
[1763482608406,0.6224,93307.0,93306.0,0.05095]
[1763482608711,0.6224,93307.0,93299.0,0.1072713]
[1763482608915,0.6224,93307.0,93306.0,0.09763]
[1763482609111,0.6224,93307.0,93306.0,0.05095]
[1763482609410,0.6224,93307.0,93306.0,0.09763]
[1763482609603,0.6244,93307.0,93306.0,0.09763]
[1763482609808,0.3628,93307.0,93306.0,0.09763]
[1763482610009,0.002,93307.0,93306.0,0.09763]
[1763482610805,0.1072674,93303.0,93298.0,0.3608]
[1763482611001,0.1092622,93307.0,93306.0,0.09763]
[1763482611712,0.1092622,93307.0,93300.0,0.1072702]
[1763482611713,0.1072655,93305.0,93300.0,0.1072702]
[1763482611914,0.3628,93307.0,93306.0,0.09763]
[1763482612110,0.1072709,93300.0,93299.0,0.09763]
[1763482612310,0.26152,93300.0,93297.0,0.00016081]
[1763482612517,0.26152,93300.0,93299.0,0.09763]
[1763482612716,0.002,93303.0,93302.0,0.09763]
[1763482612907,0.26352,93303.0,93302.0,0.09763]
[1763482613216,0.26152,93303.0,93302.0,0.09763]
[1763482614412,0.002,93307.0,93306.0,0.09763]
[1763482614616,0.26348,93307.0,93306.0,0.2048934]
[1763482615113,0.26348,93307.0,93306.0,0.09763]
[1763482615816,0.62228,93307.0,93306.0,0.09763]
[1763482616414,0.00010545,93316.0,93315.0,0.09763]
[1763482616715,0.00010545,93316.0,93310.0,0.13771673]
[1763482616911,0.00010545,93316.0,93315.0,0.05095]
[1763482617111,0.00010545,93316.0,93315.0,0.09763]
[1763482618203,0.00010545,93316.0,93315.0,0.45843]
[1763482619319,0.00110545,93316.0,93315.0,0.45843]
[1763482620317,0.00110545,93316.0,93310.0,0.03045803]
[1763482620512,0.1072576,93311.0,93310.0,0.03045803]
[1763482620711,0.1072563,93313.0,93310.0,0.07938803]
[1763482620916,0.00110545,93316.0,93312.0,0.09526]
[1763482621114,0.00110545,93316.0,93310.0,0.03045803]
[1763482621115,0.1072567,93312.0,93310.0,0.00219803]
[1763482621414,0.26144,93311.0,93310.0,0.03185803]
[1763482621611,0.1072708,93300.0,93290.0,0.14427632]
[1763482621807,0.26144,93311.0,93304.0,0.1072649]
[1763482622214,0.1072632,93307.0,93306.0,0.09526]
[1763482622607,0.3686976,93311.0,93310.0,0.12711803]
[1763482622812,0.26144,93311.0,93310.0,0.12711803]
[1763482623113,0.26244,93311.0,93310.0,0.12711803]
[1763482623307,0.62324,93311.0,93310.0,0.00219803]
[1763482623518,0.00219799,93310.0,93273.0,0.09526]
[1763482623720,0.1072995,93275.0,93274.0,0.09526]
[1763482624021,0.3608,93275.0,93274.0,0.09526]
[1763482624413,0.1072853,93287.0,93286.0,0.09526]
[1763482624613,0.3686853,93287.0,93286.0,0.09526]
[1763482624917,0.00219799,93290.0,93289.0,0.09526]
[1763482625122,0.26359799,93290.0,93289.0,0.09526]
[1763482625424,0.26359799,93290.0,93283.0,0.3608]
[1763482625824,0.1072898,93283.0,93282.0,0.07859]
[1763482626017,0.1072898,93283.0,93282.0,0.2322109]
[1763482626518,0.1072861,93287.0,93282.0,0.12492]
[1763482626719,0.3608,93306.0,93282.0,0.12492]
[1763482626720,0.03852523,93333.0,93325.0,0.1072415]
[1763482626924,0.02862,93330.0,93325.0,0.7216]
[1763482627227,0.09687788,93326.0,93325.0,0.7216]
[1763482627423,0.07113194,93326.0,93325.0,0.3608]
[1763482628818,0.07113194,93326.0,93325.0,0.37345543]
[1763482629119,0.02862,93330.0,93326.0,0.1072403]
[1763482629319,0.00010545,93335.0,93326.0,0.1072403]
[1763482629320,0.00010545,93335.0,93334.0,0.1072311]
[1763482629522,0.00010545,93335.0,93334.0,0.4680311]
[1763482630023,0.11924,93352.0,93351.0,0.1072116]
[1763482630213,0.11924,93352.0,93351.0,0.3608]
[1763482630414,0.12523,93344.0,93334.0,0.3608]
[1763482630618,0.09661,93331.0,93330.0,0.00219803]
[1763482630819,0.38942,93344.0,93330.0,0.00219803]
[1763482631022,0.38942,93344.0,93328.0,0.00016071]
[1763482631023,0.09661,93331.0,93328.0,0.00016071]
[1763482631221,0.09661,93329.0,93328.0,0.00016071]
[1763482632913,0.26164,93336.0,93335.0,0.09526]
[1763482633125,0.09661,93332.0,93331.0,0.3608]
[1763482633625,0.2038447,93331.0,93330.0,0.00219803]
[1763482635524,0.03009516,93331.0,93330.0,0.01896084]
[1763482635728,0.09661,93322.0,93321.0,0.3608]
[1763482636025,0.2038563,93321.0,93320.0,0.00219803]
[1763482636523,0.09661,93321.0,93320.0,0.00219803]
[1763482636722,0.3687607,93326.0,93325.0,0.1072417]
[1763482636920,0.26152,93326.0,93325.0,0.1072417]
[1763482637119,0.1072417,93325.0,93321.0,0.1072462]
[1763482637318,0.26152,93326.0,93325.0,0.04893]
[1763482637516,0.26152,93326.0,93325.0,0.09526]
[1763482637934,4e-07,93331.0,93330.0,0.12376]
[1763482638130,0.02862,93360.0,93330.0,0.39149803]
[1763482638320,0.05094,93336.0,93334.0,0.03807399]
[1763482638522,0.05094,93336.0,93334.0,0.14530489]
[1763482638816,0.1581702,93335.0,93334.0,0.03807399]
[1763482639022,0.09661,93332.0,93331.0,0.03807399]
[1763482639224,0.09661,93332.0,93330.0,0.36299803]
[1763482639225,0.1581748,93331.0,93330.0,0.50830732]
[1763482639422,0.26196,93342.0,93330.0,0.40107202]
[1763482639625,0.26196,93342.0,93339.0,0.1072251]
[1763482640217,0.26196,93342.0,93338.0,0.4680267]
[1763482640620,0.2038356,93339.0,93338.0,0.3608]
[1763482640824,0.09661,93339.0,93331.0,0.03807032]
[1763482641024,0.1072325,93333.0,93330.0,0.00219803]
[1763482641224,0.1072293,93336.0,93333.0,0.1072311]
[1763482641432,0.10366,93327.0,93325.0,0.03807032]
[1763482641727,0.2108994,93327.0,93318.0,0.03807032]
[1763482641921,0.2108994,93327.0,93313.0,0.03807032]
[1763482642121,0.2108994,93327.0,93312.0,0.03807032]
[1763482642320,0.29147,93328.0,93312.0,0.03807032]
[1763482642321,0.2109155,93313.0,93312.0,0.03807032]
[1763482642521,0.2109155,93313.0,93310.0,0.03807032]
[1763482642522,0.2109178,93311.0,93310.0,0.03807032]
[1763482642716,0.210927,93303.0,93302.0,0.3608]
[1763482643131,0.10366,93303.0,93302.0,0.3608]
[1763482645132,0.36546,93303.0,93302.0,0.3608]
[1763482646034,0.10366,93301.0,93300.0,0.00219803]
[1763482646533,0.05344,93294.0,93293.0,0.05378071]
[1763482646723,0.05344,93294.0,93293.0,0.00016071]
[1763482646926,0.1072728,93298.0,93297.0,0.1072739]
[1763482647232,0.3608,93323.0,93300.0,0.02947803]
[1763482647435,0.1569416,93308.0,93303.0,0.3608]
[1763482647637,0.1569416,93308.0,93307.0,0.1072624]
[1763482647933,0.04968,93308.0,93303.0,0.3608]
[1763482648141,0.1072659,93304.0,93303.0,0.3608]
[1763482648630,0.04968,93304.0,93303.0,0.3608]
[1763482648832,0.3689788,93311.0,93308.0,0.1072612]
[1763482649040,0.4680442,93323.0,93311.0,0.2113378]
[1763482649228,0.3608,93323.0,93311.0,0.5721378]
[1763482649424,0.3608,93323.0,93311.0,0.46488]
[1763482649630,0.20688741,93312.0,93311.0,0.3608]
[1763482650226,0.09947,93301.0,93300.0,0.03807032]
[1763482650431,0.09947,93301.0,93300.0,0.00219803]
[1763482651333,0.46821741,93312.0,93300.0,0.10627803]
[1763482651334,0.107261,93309.0,93300.0,0.10627803]
[1763482651534,0.09947,93305.0,93304.0,0.3608]
[1763482651726,0.1072636,93306.0,93305.0,0.10408]
[1763482651926,0.1072636,93306.0,93305.0,0.2113447]
[1763482652135,0.1072636,93306.0,93305.0,0.10408]
[1763482652332,0.1072636,93306.0,93304.0,0.3608]
[1763482652333,0.09947,93305.0,93304.0,0.3608]
[1763482652531,0.2067393,93301.0,93300.0,0.00219803]
[1763482652731,0.2067393,93301.0,93293.0,0.36096071]
[1763482652732,0.09947,93294.0,93293.0,0.36096071]
[1763482653228,0.26168,93301.0,93293.0,0.46504071]
[1763482653434,0.1072577,93311.0,93310.0,0.05291]
[1763482653630,0.09947,93307.0,93297.0,0.03807032]
[1763482653830,0.04968,93298.0,93295.0,0.03807032]
[1763482654038,0.1072659,93304.0,93300.0,0.1072694]
[1763482654231,0.2067392,93301.0,93300.0,0.00219803]
[1763482654734,0.62248,93311.0,93300.0,0.21354833]
[1763482654935,0.1072656,93305.0,93304.0,0.05291]
[1763482655141,0.09947,93304.0,93303.0,0.1072667]
[1763482655336,0.09947,93301.0,93300.0,0.00219803]
[1763482656839,0.2067369,93303.0,93302.0,0.05291]
[1763482657040,0.4683769,93303.0,93302.0,0.05291]
[1763482657241,0.4683769,93303.0,93300.0,0.00219803]
[1763482657242,0.04968,93301.0,93300.0,0.00219803]
[1763482657433,0.1072749,93296.0,93295.0,0.03807032]
[1763482657632,0.1072749,93296.0,93294.0,0.39887032]
[1763482657633,0.09947,93295.0,93294.0,0.39887032]
[1763482658137,0.09947,93295.0,93294.0,0.3608]
[1763482658334,0.09947,93295.0,93294.0,0.39887032]
[1763482658536,0.09947,93295.0,93294.0,0.3608]
[1763482659241,0.1072735,93299.0,93298.0,0.2113514]
[1763482659439,0.3688335,93299.0,93298.0,0.2113514]
[1763482659630,0.1072735,93299.0,93298.0,0.2113514]
[1763482659831,0.3688284,93302.0,93301.0,0.2113469]
[1763482660030,0.3688284,93302.0,93301.0,0.10408]
[1763482660453,0.09947,93301.0,93300.0,0.00219803]
[1763482660834,0.2067438,93297.0,93295.0,0.03807032]
[1763482661125,0.2067472,93294.0,93293.0,0.00016071]
[1763482661330,0.4185172,93294.0,93293.0,0.10424071]
[1763482661536,0.4683072,93294.0,93293.0,0.00016071]
[1763482661747,0.8291072,93294.0,93293.0,0.00016071]
[1763482661933,0.2067553,93287.0,93286.0,0.03833831]
[1763482662241,0.2067553,93287.0,93286.0,0.00026799]
[1763482666635,0.2067553,93287.0,93277.0,0.00016071]
[1763482666636,0.2067656,93278.0,93277.0,0.00016071]
[1763482666848,0.4682456,93278.0,93277.0,0.00016071]
[1763482667430,0.36095,93278.0,93277.0,0.00016071]
[1763482667644,0.0001608,93287.0,93283.0,0.2113693]
[1763482667645,0.1072913,93284.0,93283.0,0.2113693]
[1763482667838,0.0001608,93287.0,93286.0,0.2113664]
[1763482668046,0.2616008,93287.0,93286.0,0.2113664]
[1763482668238,0.4185661,93287.0,93286.0,0.10408]
[1763482668443,0.09947,93285.0,93284.0,0.41371]
[1763482668833,0.09947,93285.0,93284.0,0.3608]
[1763482669339,0.0001608,93287.0,93286.0,0.10408]
[1763482669550,0.2616008,93287.0,93286.0,0.10408]
[1763482670142,0.0001608,93287.0,93286.0,0.05291]
[1763482670447,0.0001608,93287.0,93286.0,0.10408]
[1763482671343,0.0001608,93287.0,93284.0,0.3608]
[1763482671344,0.09947,93285.0,93284.0,0.3608]
[1763482671549,0.1072864,93286.0,93285.0,0.10408]
[1763482671845,0.0001608,93287.0,93284.0,0.4680881]
[1763482671846,0.0001608,93287.0,93286.0,0.10408]
[1763482672640,0.0001608,93287.0,93286.0,0.18051092]
[1763482672946,0.0001608,93287.0,93286.0,0.18051183]
[1763482673147,0.0001608,93287.0,93286.0,0.10408]
[1763482673346,0.26144,93298.0,93297.0,0.2113538]
[1763482673650,0.26144,93298.0,93297.0,0.62947764]
[1763482673854,0.3608,93320.0,93302.0,0.107268]
[1763482674152,0.04968,93303.0,93302.0,0.19839445]
[1763482674360,0.26144,93314.0,93306.0,0.1072634]
[1763482674361,0.0001608,93312.0,93306.0,0.1072634]
[1763482674652,0.0996308,93312.0,93311.0,0.05291]
[1763482674843,0.2067277,93311.0,93310.0,0.00219803]
[1763482675244,0.4681677,93311.0,93310.0,0.00219803]
[1763482676341,0.0001608,93312.0,93310.0,0.10627803]
[1763482676649,0.26144,93315.0,93314.0,0.2410642]
[1763482676949,0.26144,93315.0,93314.0,0.2532884]
[1763482677337,0.00026788,93326.0,93314.0,0.31061224]
[1763482677544,0.00026788,93326.0,93325.0,0.09388]
[1763482677743,0.09167788,93326.0,93325.0,0.04809]
[1763482677938,0.09141,93324.0,93323.0,0.05732384]
[1763482678149,0.10750828,93326.0,93325.0,0.09388]
[1763482678456,0.00026788,93326.0,93325.0,0.09388]
[1763482679044,0.1555462,93321.0,93320.0,0.05952187]
[1763482679250,0.1986562,93321.0,93320.0,0.09607803]
[1763482679658,0.1986562,93321.0,93320.0,0.05028803]
[1763482679952,0.1986562,93321.0,93320.0,0.00219803]
[1763482680252,0.09141,93317.0,93316.0,0.0001608]
[1763482680553,0.45221,93317.0,93316.0,0.0001608]
[1763482680754,0.10982,93310.0,93309.0,0.03818692]
[1763482681056,0.4785188,93310.0,93308.0,0.03818692]
[1763482681252,0.1072586,93311.0,93310.0,0.04809]
[1763482681457,0.1072543,93314.0,93313.0,0.04579]
[1763482681758,0.1072543,93314.0,93313.0,0.09388]
[1763482682056,0.09141,93313.0,93312.0,0.03822708]
[1763482682253,0.1986665,93312.0,93311.0,0.08631708]
[1763482682454,0.2614,93315.0,93314.0,0.09388]
[1763482682643,0.0001608,93323.0,93322.0,0.09388]
[1763482682848,0.0001608,93323.0,93322.0,0.45468]
[1763482683152,0.3608,93347.0,93325.0,0.09388]
[1763482683353,0.3608,93365.0,93346.0,0.1072175]
[1763482683555,0.10721,93353.0,93350.0,0.00219803]
[1763482683751,0.1072042,93358.0,93357.0,0.04809]
[1763482683951,0.1072042,93358.0,93346.0,0.3608]
[1763482683952,0.107198,93363.0,93360.0,0.00219803]
[1763482684150,0.3608,93365.0,93364.0,0.09388]